fUST/lending_fUST_20250619
["ID","MTS","AMOUNT","RATE_DAILY","PERIOD"]
[366476188,1750279832724,-347.01,0.0001998,3]
[366476190,1750279832734,-173.51,0.0001998,3]
[366476192,1750279832745,-520.54,0.0001998,3]
[366476194,1750279832755,-93164.10206161,0.0001999,2]
[366476196,1750279832764,-160.0,0.00019999,2]
[366476198,1750279832773,-1563.434122,0.00019999,2]
[366476200,1750279832782,-262845.74350925,0.0002,2]
[366476202,1750279832794,-487100.34100386,0.0002,2]
[366476204,1750279832803,-292.0,0.00020021,2]
[366476206,1750279832813,-1951.70683784,0.00020107,2]
[366476208,1750279832822,-1585.19,0.00020131,2]
[366476210,1750279832832,-279.637768,0.00020187,2]
[366476212,1750279832841,-5392.4632715,0.00020279,2]
[366476214,1750279832851,-1951.70683784,0.00020314,3]
[366476216,1750279832861,-429.82901923,0.00020399,2]
[366476218,1750279832870,-168.17519988,0.000205,2]
[366476220,1750279832880,-1000.0,0.00020521,2]
[366476223,1750279832893,-1000.0,0.00020521,2]
[366476225,1750279832902,-1000.0,0.00020521,2]
[366476227,1750279832912,-515.33291534,0.00020521,2]
[366476229,1750279832921,-684.21421362,0.00020521,2]
[366476231,1750279832931,-504.99209339,0.00020521,2]
[366476233,1750279832941,-1000.0,0.00020521,2]
[366476235,1750279832951,-1000.0,0.00020521,2]
[366476237,1750279832960,-1951.70683784,0.00020521,3]
[366476239,1750279832970,-500.0,0.00020547,2]
[366476241,1750279832979,-168.0,0.00020583,2]
[366476243,1750279832989,-67415.24,0.000206,2]
[366476245,1750279832998,-1692.56,0.000206,2]
[366476247,1750279833007,-536.85,0.000206,2]
[366476249,1750279833017,-429.82901925,0.0002062,2]
[366476251,1750279833027,-5392.4632715,0.00020636,2]
[366476253,1750279833037,-50000.0,0.0002066,2]
[366476255,1750279833047,-1951.70683784,0.00020728,3]
[366476257,1750279833057,-1951.70683784,0.00020934,4]
[366476259,1750279833067,-5392.4632715,0.00020994,2]
[366476261,1750279833077,-2113.58,0.00021006,2]
[366476262,1750279833086,-1500.0,0.00021068,2]
[366476265,1750279833097,-1004.25083734,0.00021068,2]
[366476267,1750279833106,-509.50816501,0.00021068,2]
[366476269,1750279833122,-500.0,0.00021068,2]
[366476271,1750279833133,-500.0,0.00021095,3]
[366476273,1750279833143,-1951.70683784,0.00021141,4]
[366476275,1750279833153,-1951.70683784,0.00021348,5]
[366476277,1750279833163,-1388.06,0.0002135,3]
[366476279,1750279833173,-694.02,0.0002135,3]
[366476281,1750279833184,-347.02,0.0002135,3]
[366476283,1750279833194,-12542.39314967,0.0002135,3]
[366476285,1750279833204,-213.43818883,0.0002135,3]
[366476287,1750279833214,-5392.4632715,0.00021351,2]
[366476289,1750279833224,-160.0,0.00021369,2]
[366476291,1750279833233,-346.9248725,0.0002137,2]
[366476293,1750279833243,-158.9908236,0.0002137,2]
[366476295,1750279833253,-306.0,0.0002137,2]
[366476297,1750279833262,-420.0,0.00021414,2]
[366476299,1750279833272,-420.0,0.00021414,2]
[366476301,1750279833281,-160.0,0.00021418,2]
[366476303,1750279833290,-160.0,0.00021418,2]
[366476305,1750279833299,-151.83390983,0.00021418,2]
[366476307,1750279833312,-8.16609017,0.00021418,2]
[366476310,1750279833321,-424.70586748,0.00021418,2]
[366476312,1750279833333,-229.98435572,0.00021418,2]
[366476314,1750279833343,-4858.78090337,0.00021418,2]
[366476784,1750279838227,-315.48910325,0.0002135,3]
[366476786,1750279838240,-7683.6122463,0.00021418,2]
[366476788,1750279838250,-160.0,0.00021418,2]
[366476790,1750279838259,-160.0,0.00021418,2]
[366476792,1750279838268,-835.98428123,0.00021418,2]
[366476794,1750279838277,-213.43818883,0.00021418,2]
[366476796,1750279838286,-315.48910325,0.00021418,2]
[366476798,1750279838295,-845.78193577,0.00021418,2]
[366476800,1750279838305,-155.2600871,0.00021425,2]
[366476802,1750279838314,-316.8428837,0.00021425,2]
[366476804,1750279838323,-153.0,0.00021425,2]
[366476806,1750279838332,-153.0,0.00021425,2]
[366476808,1750279838341,-177.1504183,0.00021425,2]
[366476810,1750279838350,-574.2153043,0.00021425,2]
[366476812,1750279838359,-127283.5956585,0.00021443,2]
[366476814,1750279838371,-193717.72768465,0.00021443,2]
[366476816,1750279838380,-160.0,0.00021451,2]
[366476818,1750279838389,-160.0,0.00021451,2]
[366476820,1750279838398,-160.0,0.00021451,2]
[366476822,1750279838407,-197.0,0.00021457,2]
[366476824,1750279838416,-500.0,0.00021473,2]
[366476826,1750279838425,-500.0,0.00021473,2]
[366476828,1750279838434,-500.31929836,0.00021473,2]
[366476830,1750279838443,-500.0,0.00021473,2]
[366476832,1750279838451,-500.0,0.00021473,2]
[366476835,1750279838471,-500.0,0.00021473,2]
[366476837,1750279838481,-500.0,0.00021473,2]
[366476839,1750279838490,-502.19345932,0.00021473,2]
[366476841,1750279838500,-500.0,0.00021473,2]
[366476843,1750279838509,-502.91797516,0.00021473,2]
[366476864,1750279838703,-500.0,0.00021473,2]
[366476866,1750279838715,-500.0,0.00021473,2]
[366476868,1750279838724,-500.0,0.00021473,2]
[366476870,1750279838733,-527.12833942,0.00021473,2]
[366476872,1750279838743,-500.0,0.00021473,2]
[366476874,1750279838754,-500.0,0.00021473,2]
[366476876,1750279838763,-500.0,0.00021473,2]
[366476878,1750279838773,-152.97055478,0.00021473,2]
[366476881,1750279838783,-600.0,0.00021473,2]
[366476882,1750279838792,-500.0,0.00021473,2]
[366476884,1750279838801,-500.0,0.00021473,2]
[366476886,1750279838811,-500.0,0.00021473,2]
[366476888,1750279838820,-500.0,0.00021473,2]
[366476889,1750279838829,-636.55493512,0.00021473,2]
[366476890,1750279838838,-171.93704771,0.00021473,2]
[366476891,1750279838847,-500.0,0.00021473,2]
[366476892,1750279838856,-502.62722475,0.00021473,2]
[366476893,1750279838866,-500.0,0.00021473,2]
[366476894,1750279838875,-336.9302654,0.00021473,2]
[366476895,1750279838884,-516.93256002,0.00021473,2]
[366476896,1750279838893,-243.40682598,0.00021473,2]
[366476897,1750279838903,-1000.0,0.00021483,2]
[366476898,1750279838911,-967.28,0.00021483,2]
[366476899,1750279838921,-574.2153043,0.00021507,2]
[366476900,1750279838930,-1147.140276,0.00021507,2]
[366476901,1750279838939,-514.6651404,0.00021507,2]
[366476902,1750279838948,-1951.70683784,0.00021555,5]
[366476903,1750279838958,-306.0000001,0.00021589,2]
[366476904,1750279838967,-2000.0,0.00021616,2]
[366476905,1750279838976,-356.1238229,0.00021616,2]
[366476906,1750279838985,-574.2153043,0.00021616,2]
[366476907,1750279838995,-554.05,0.00021643,4]
[366476908,1750279839007,-50000.0,0.0002166,2]
[366476909,1750279839017,-1951.70683784,0.00021762,5]
[366476910,1750279839026,-1713.2244283,0.00021817,2]
[366476911,1750279839035,-2641.98,0.00021882,2]
[366476913,1750279839046,-200.0,0.00021916,2]
[366476915,1750279839055,-200.0,0.00021916,2]
[366476917,1750279839064,-200.0,0.00021916,2]
[366476919,1750279839074,-160.47005698,0.00021916,2]
[366476921,1750279839085,-200.0,0.00021916,2]
[366476923,1750279839094,-380.0,0.00021917,6]
[366476925,1750279839104,-460.0,0.00021917,6]
[366476927,1750279839114,-370.0,0.00021917,6]
[366476929,1750279839123,-400.0,0.00021917,6]
[366476931,1750279839132,-334.28555124,0.00021917,6]
[366476933,1750279839142,-290.0,0.00021917,6]
[366476935,1750279839151,-460.0,0.00021917,6]
[366476937,1750279839161,-430.0,0.00021917,6]
[366476939,1750279839170,-460.0,0.00021917,6]
[366476941,1750279839180,-460.0,0.00021917,6]
[366476943,1750279839189,-460.0,0.00021917,6]
[366476945,1750279839198,-460.0,0.00021917,6]
[366476947,1750279839208,-460.0,0.00021917,6]
[366476949,1750279839217,-460.0,0.00021917,6]
[366476951,1750279839227,-460.0,0.00021917,6]
[366476953,1750279839236,-460.0,0.00021917,6]
[366476955,1750279839246,-460.0,0.00021917,6]
[366476957,1750279839255,-437.37231527,0.00021917,6]
[366476959,1750279839265,-410.0,0.00021917,6]
[366476961,1750279839274,-460.0,0.00021917,6]
[366476962,1750279839284,-430.54229912,0.00021917,6]
[366476964,1750279839293,-430.0,0.00021917,6]
[366476967,1750279839303,-460.0,0.00021917,6]
[366476969,1750279839312,-460.0,0.00021917,6]
[366476970,1750279839321,-460.0,0.00021917,6]
[366476972,1750279839331,-460.0,0.00021917,6]
[366476975,1750279839341,-460.0,0.00021917,6]
[366476977,1750279839350,-460.0,0.00021917,6]
[366476978,1750279839359,-460.0,0.00021917,6]
[366476980,1750279839369,-460.0,0.00021917,6]
[366476983,1750279839378,-460.0,0.00021917,6]
[366476984,1750279839387,-460.0,0.00021917,6]
[366476986,1750279839396,-431.8036436,0.00021917,6]
[366476988,1750279839406,-460.0,0.00021917,6]
[366476991,1750279839416,-430.0,0.00021917,6]
[366476992,1750279839425,-410.0,0.00021917,6]
[366476994,1750279839435,-460.0,0.00021917,6]
[366476997,1750279839445,-488.79558714,0.00021917,6]
[366476999,1750279839455,-489.88336343,0.00021917,6]
[366477001,1750279839467,-460.0,0.00021917,6]
[366477003,1750279839477,-460.0,0.00021917,6]
[366477005,1750279839487,-460.0,0.00021917,6]
[366477007,1750279839496,-460.0,0.00021917,6]
[366477009,1750279839506,-440.0,0.00021917,6]
[366477011,1750279839517,-405.6209266,0.00021917,6]
[366477013,1750279839530,-430.0,0.00021917,6]
[366477015,1750279839539,-432.28856942,0.00021917,6]
[366477017,1750279839549,-430.0,0.00021917,6]
[366477019,1750279839559,-460.0,0.00021917,6]
[366477021,1750279839568,-460.0,0.00021917,6]
[366477022,1750279839577,-460.0,0.00021917,6]
[366477025,1750279839587,-460.0,0.00021917,6]
[366477027,1750279839597,-460.0,0.00021917,6]
[366477028,1750279839607,-323.97083194,0.00021917,6]
[366477030,1750279839616,-320.51449009,0.00021917,6]
[366477032,1750279839626,-460.0,0.00021917,6]
[366477034,1750279839635,-338.4064164,0.00021917,6]
[366477036,1750279839644,-437.00000006,0.00021917,6]
[366477038,1750279839654,-460.0,0.00021917,6]
[366477040,1750279839663,-460.0,0.00021917,6]
[366477042,1750279839672,-400.90786718,0.00021917,6]
[366477044,1750279839681,-355.67259303,0.00021917,6]
[366477046,1750279839691,-430.0,0.00021917,6]
[366477048,1750279839701,-460.0,0.00021917,6]
[366477050,1750279839710,-460.0,0.00021917,6]
[366477052,1750279839719,-430.0,0.00021917,6]
[366477054,1750279839729,-460.0,0.00021917,6]
[366477056,1750279839738,-460.0,0.00021917,6]
[366477058,1750279839748,-460.0,0.00021917,6]
[366477060,1750279839757,-352.53912567,0.00021917,6]
[366477062,1750279839766,-513.29060339,0.00021917,6]
[366477064,1750279839776,-460.0,0.00021917,6]
[366477066,1750279839786,-500.65416939,0.00021917,6]
[366477069,1750279839795,-430.0,0.00021917,6]
[366477071,1750279839804,-460.0,0.00021917,6]
[366477073,1750279839814,-373.33719584,0.00021917,6]
[366477075,1750279839823,-460.0,0.00021917,6]
[366477077,1750279839833,-460.0,0.00021917,6]
[366477079,1750279839841,-440.0,0.00021917,6]
[366477081,1750279839850,-460.0,0.00021917,6]
[366477084,1750279839860,-460.0,0.00021917,6]
[366477086,1750279839869,-430.0,0.00021917,5]
[366477090,1750279839879,-460.0,0.00021917,6]
[366477091,1750279839889,-440.0,0.00021917,6]
[366477095,1750279839899,-400.0,0.00021917,6]
[366477097,1750279839908,-460.0,0.00021917,6]
[366477100,1750279839918,-300.0,0.00021917,6]
[366477104,1750279839928,-491.74659056,0.00021917,6]
[366477107,1750279839938,-440.0,0.00021917,6]
[366477108,1750279839947,-198.35322482,0.00021917,6]
[366477111,1750279839957,-460.0,0.00021917,6]
[366477112,1750279839967,-430.0,0.00021917,6]
[366477114,1750279839976,-460.0,0.00021917,6]
[366477117,1750279839986,-460.0,0.00021917,6]
[366477119,1750279839997,-460.0,0.00021917,6]
[366477121,1750279840006,-460.0,0.00021917,6]
[366477123,1750279840016,-460.0,0.00021917,6]
[366477125,1750279840026,-460.0,0.00021917,6]
[366477127,1750279840036,-460.0,0.00021917,6]
[366477130,1750279840046,-590.29027114,0.00021917,6]
[366477131,1750279840055,-492.54,0.00021917,6]
[366477134,1750279840066,-460.0,0.00021917,6]
[366477136,1750279840076,-460.0,0.00021917,6]
[366477138,1750279840085,-460.0,0.00021917,6]
[366477140,1750279840095,-460.0,0.00021917,6]
[366477142,1750279840104,-511.6223811,0.00021917,6]
[366477143,1750279840114,-460.0,0.00021917,6]
[366477144,1750279840124,-460.0,0.00021917,6]
[366477145,1750279840133,-460.0,0.00021917,6]
[366477146,1750279840143,-430.0,0.00021917,6]
[366477147,1750279840152,-440.0,0.00021917,6]
[366477148,1750279840162,-440.0,0.00021917,6]
[366477149,1750279840171,-460.0,0.00021917,6]
[366477150,1750279840181,-460.0,0.00021917,6]
[366477151,1750279840191,-460.0,0.00021917,6]
[366477152,1750279840200,-460.0,0.00021917,6]
[366477153,1750279840210,-460.0,0.00021917,6]
[366477154,1750279840219,-460.0,0.00021917,6]
[366477155,1750279840229,-460.0,0.00021917,6]
[366477156,1750279840239,-440.0,0.00021917,6]
[366477157,1750279840251,-440.0,0.00021917,6]
[366477158,1750279840260,-388.10969617,0.00021917,6]
[366477159,1750279840270,-460.0,0.00021917,6]
[366477160,1750279840279,-241.0676484,0.00021917,6]
[366477161,1750279840288,-460.0,0.00021917,6]
[366477162,1750279840298,-405.25574494,0.00021917,6]
[366477163,1750279840308,-214.01649776,0.00021917,6]
[366477164,1750279840318,-460.0,0.00021917,6]
[366477165,1750279840328,-460.0,0.00021917,6]
[366477166,1750279840338,-460.0,0.00021917,6]
[366477167,1750279840347,-440.0,0.00021917,6]
[366477168,1750279840357,-460.0,0.00021917,6]
[366477169,1750279840368,-460.0,0.00021917,6]
[366477170,1750279840378,-460.0,0.00021917,6]
[366477171,1750279840387,-401.38747886,0.00021917,6]
[366477172,1750279840398,-517.06172062,0.00021917,6]
[366477173,1750279840407,-430.0,0.00021917,6]
[366477174,1750279840417,-460.0,0.00021917,6]
[366477175,1750279840426,-460.0,0.00021917,6]
[366477176,1750279840435,-430.0,0.00021917,6]
[366477177,1750279840444,-460.0,0.00021917,6]
[366477178,1750279840454,-437.30842506,0.00021917,6]
[366477179,1750279840463,-460.0,0.00021917,6]
[366477180,1750279840473,-460.0,0.00021917,6]
[366477181,1750279840483,-460.0,0.00021917,6]
[366477182,1750279840492,-460.0,0.00021917,6]
[366477183,1750279840504,-430.0,0.00021917,6]
[366477184,1750279840514,-211.07346855,0.00021917,6]
[366477185,1750279840527,-346.26302682,0.00021917,6]
[366477186,1750279840536,-430.0,0.00021917,6]
[366477187,1750279840546,-460.0,0.00021917,6]
[366477188,1750279840555,-400.0,0.00021917,6]
[366477189,1750279840565,-430.0,0.00021917,6]
[366477190,1750279840575,-460.0,0.00021917,6]
[366477191,1750279840584,-460.0,0.00021917,6]
[366477192,1750279840593,-460.0,0.00021917,6]
[366477193,1750279840603,-430.0,0.00021917,6]
[366477195,1750279840612,-417.93633776,0.00021917,6]
[366477197,1750279840622,-460.0,0.00021917,6]
[366477199,1750279840632,-460.0,0.00021917,6]
[366477201,1750279840641,-460.0,0.00021917,6]
[366477203,1750279840650,-460.0,0.00021917,6]
[366477205,1750279840660,-460.0,0.00021917,6]
[366477207,1750279840669,-460.0,0.00021917,6]
[366477209,1750279840679,-404.04356514,0.00021917,6]
[366477211,1750279840688,-460.0,0.00021917,6]
[366477213,1750279840698,-460.0,0.00021917,6]
[366477215,1750279840707,-460.0,0.00021917,6]
[366477217,1750279840716,-460.25,0.00021917,6]
[366477219,1750279840726,-400.0,0.00021917,6]
[366477221,1750279840735,-460.0,0.00021917,6]
[366477223,1750279840744,-460.0,0.00021917,6]
[366477225,1750279840755,-460.0,0.00021917,6]
[366477227,1750279840764,-460.0,0.00021917,6]
[366477229,1750279840774,-460.0,0.00021917,6]
[366477231,1750279840783,-440.0,0.00021917,6]
[366477233,1750279840792,-390.0,0.00021917,6]
[366477235,1750279840801,-460.0,0.00021917,6]
[366477237,1750279840810,-460.0,0.00021917,6]
[366477239,1750279840820,-460.0,0.00021917,6]
[366477241,1750279840829,-460.0,0.00021917,6]
[366477243,1750279840839,-350.0,0.00021917,6]
[366477245,1750279840849,-460.0,0.00021917,6]
[366477246,1750279840858,-460.0,0.00021917,6]
[366477248,1750279840868,-460.0,0.00021917,6]
[366477250,1750279840878,-532.05473386,0.00021917,6]
[366477252,1750279840887,-460.0,0.00021917,6]
[366477254,1750279840896,-241.96948093,0.00021917,6]
[366477256,1750279840906,-460.0,0.00021917,6]
[366477258,1750279840915,-460.0,0.00021917,6]
[366477259,1750279840924,-460.0,0.00021917,6]
[366477260,1750279840933,-460.0,0.00021917,6]
[366477261,1750279840944,-460.0,0.00021917,6]
[366477262,1750279840953,-460.0,0.00021917,6]
[366477263,1750279840962,-460.0,0.00021917,6]
[366477264,1750279840972,-460.0,0.00021917,6]
[366477265,1750279840981,-460.0,0.00021917,6]
[366477267,1750279840990,-460.0,0.00021917,6]
[366477269,1750279841000,-460.0,0.00021917,6]
[366477271,1750279841010,-460.0,0.00021917,6]
[366477273,1750279841019,-460.0,0.00021917,6]
[366477275,1750279841028,-460.0,0.00021917,6]
[366477277,1750279841037,-408.6610821,0.00021917,6]
[366477278,1750279841046,-460.0,0.00021917,6]
[366477280,1750279841056,-460.0,0.00021917,6]
[366477282,1750279841066,-460.0,0.00021917,6]
[366477284,1750279841075,-460.0,0.00021917,6]
[366477286,1750279841085,-460.0,0.00021917,6]
[366477288,1750279841094,-310.99064354,0.00021917,6]
[366477290,1750279841103,-460.0,0.00021917,6]
[366477292,1750279841112,-460.0,0.00021917,6]
[366477294,1750279841121,-585.537631,0.00021917,6]
[366477296,1750279841131,-460.0,0.00021917,6]
[366477298,1750279841140,-460.0,0.00021917,6]
[366477300,1750279841150,-400.0,0.00021917,6]
[366477302,1750279841159,-460.0,0.00021917,6]
[366477304,1750279841168,-460.0,0.00021917,6]
[366477306,1750279841177,-460.0,0.00021917,6]
[366477308,1750279841187,-460.0,0.00021917,6]
[366477310,1750279841196,-460.0,0.00021917,6]
[366477312,1750279841205,-460.0,0.00021917,6]
[366477314,1750279841215,-460.0,0.00021917,6]
[366477316,1750279841224,-412.83622971,0.00021917,6]
[366477318,1750279841233,-304.85327493,0.00021917,6]
[366477320,1750279841242,-460.0,0.00021917,6]
[366477322,1750279841253,-460.0,0.00021917,6]
[366477324,1750279841263,-460.0,0.00021917,6]
[366477326,1750279841272,-407.69951743,0.00021917,6]
[366477328,1750279841281,-460.0,0.00021917,6]
[366477330,1750279841290,-460.0,0.00021917,6]
[366477345,1750279841417,-460.0,0.00021917,6]
[366477347,1750279841426,-460.0,0.00021917,6]
[366477349,1750279841435,-340.0,0.00021917,6]
[366477351,1750279841444,-460.0,0.00021917,6]
[366477353,1750279841453,-435.7739596,0.00021917,6]
[366477355,1750279841463,-380.0,0.00021917,6]
[366477357,1750279841472,-460.0,0.00021917,6]
[366477359,1750279841481,-460.0,0.00021917,6]
[366477360,1750279841490,-401.97302258,0.00021917,6]
[366477361,1750279841501,-945.55,0.00021917,6]
[366477362,1750279841510,-403.48951065,0.00021917,6]
[366477363,1750279841522,-460.0,0.00021917,6]
[366477365,1750279841532,-460.0,0.00021917,6]
[366477366,1750279841540,-373.81510061,0.00021917,6]
[366477367,1750279841550,-460.0,0.00021917,6]
[366477368,1750279841559,-460.0,0.00021917,6]
[366477369,1750279841570,-460.0,0.00021917,6]
[366477370,1750279841580,-460.0,0.00021917,6]
[366477371,1750279841589,-460.0,0.00021917,6]
[366477372,1750279841599,-460.0,0.00021917,6]
[366477373,1750279841609,-460.0,0.00021917,6]
[366477374,1750279841619,-403.37743186,0.00021917,6]
[366477375,1750279841629,-460.0,0.00021917,6]
[366477376,1750279841639,-500.0,0.00021917,6]
[366477377,1750279841648,-460.0,0.00021917,6]
[366477378,1750279841658,-440.0,0.00021917,6]
[366477379,1750279841667,-786.98,0.00021917,6]
[366477380,1750279841676,-460.0,0.00021917,6]
[366477381,1750279841686,-400.0,0.00021917,6]
[366477382,1750279841696,-460.0,0.00021917,6]
[366477383,1750279841705,-460.0,0.00021917,6]
[366477384,1750279841714,-460.0,0.00021917,6]
[366477385,1750279841723,-460.0,0.00021917,6]
[366477386,1750279841733,-460.0,0.00021917,6]
[366477387,1750279841742,-460.0,0.00021917,6]
[366477388,1750279841752,-642.4,0.00021917,6]
[366477389,1750279841761,-460.0,0.00021917,6]
[366477390,1750279841771,-460.0,0.00021917,6]
[366477391,1750279841781,-435.41615835,0.00021917,6]
[366477392,1750279841790,-500.0,0.00021917,6]
[366477393,1750279841799,-440.0,0.00021917,6]
[366477394,1750279841808,-460.0,0.00021917,6]
[366477395,1750279841817,-460.0,0.00021917,6]
[366477396,1750279841828,-460.0,0.00021917,6]
[366477397,1750279841837,-400.0,0.00021917,6]
[366477398,1750279841846,-460.0,0.00021917,6]
[366477399,1750279841856,-460.0,0.00021917,6]
[366477400,1750279841865,-388.35225616,0.00021917,6]
[366477401,1750279841875,-460.0,0.00021917,6]
[366477402,1750279841884,-460.0,0.00021917,6]
[366477403,1750279841893,-460.0,0.00021917,6]
[366477404,1750279841902,-460.0,0.00021917,6]
[366477405,1750279841911,-460.0,0.00021917,6]
[366477406,1750279841920,-460.0,0.00021917,6]
[366477407,1750279841929,-460.0,0.00021917,6]
[366477408,1750279841938,-460.0,0.00021917,6]
[366477409,1750279841947,-460.0,0.00021917,6]
[366477410,1750279841957,-460.0,0.00021917,6]
[366477411,1750279841966,-460.0,0.00021917,6]
[366477412,1750279841976,-269.88839009,0.00021917,6]
[366477413,1750279841986,-460.0,0.00021917,6]
[366477414,1750279841995,-524.71323358,0.00021917,6]
[366477415,1750279842006,-460.0,0.00021917,6]
[366477416,1750279842015,-460.0,0.00021917,6]
[366477417,1750279842025,-460.0,0.00021917,6]
[366477418,1750279842034,-460.0,0.00021917,6]
[366477419,1750279842043,-350.58208313,0.00021917,6]
[366477420,1750279842053,-564.29351477,0.00021917,6]
[366477421,1750279842062,-460.0,0.00021917,6]
[366477422,1750279842071,-460.0,0.00021917,6]
[366477423,1750279842081,-460.0,0.00021917,6]
[366477424,1750279842089,-460.0,0.00021917,6]
[366477425,1750279842099,-440.0,0.00021917,6]
[366477426,1750279842108,-460.0,0.00021917,6]
[366477427,1750279842117,-460.0,0.00021917,6]
[366477428,1750279842126,-410.0,0.00021917,6]
[366477429,1750279842135,-460.0,0.00021917,6]
[366477430,1750279842144,-460.0,0.00021917,6]
[366477431,1750279842154,-430.0,0.00021917,6]
[366477432,1750279842163,-460.0,0.00021917,6]
[366477433,1750279842173,-378.94888161,0.00021917,6]
[366477434,1750279842182,-500.0,0.00021917,6]
[366477435,1750279842190,-460.0,0.00021917,6]
[366477436,1750279842200,-482.15288176,0.00021917,6]
[366477437,1750279842209,-460.0,0.00021917,6]
[366477438,1750279842218,-460.0,0.00021917,6]
[366477439,1750279842227,-460.0,0.00021917,6]
[366477440,1750279842236,-460.0,0.00021917,6]
[366477441,1750279842246,-460.0,0.00021917,6]
[366477442,1750279842255,-400.0,0.00021917,6]
[366477443,1750279842264,-460.0,0.00021917,6]
[366477444,1750279842273,-460.0,0.00021917,6]
[366477445,1750279842282,-460.0,0.00021917,6]
[366477446,1750279842290,-460.0,0.00021917,6]
[366477447,1750279842299,-476.29080223,0.00021917,6]
[366477448,1750279842308,-460.0,0.00021917,6]
[366477449,1750279842317,-460.0,0.00021917,6]
[366477450,1750279842327,-460.0,0.00021917,6]
[366477451,1750279842335,-896.17,0.00021917,6]
[366477452,1750279842344,-460.0,0.00021917,6]
[366477453,1750279842353,-344.16638328,0.00021917,6]
[366477454,1750279842362,-460.0,0.00021917,6]
[366477455,1750279842371,-380.0,0.00021917,6]
[366477456,1750279842380,-460.0,0.00021917,6]
[366477457,1750279842392,-460.0,0.00021917,6]
[366477458,1750279842402,-460.0,0.00021917,6]
[366477459,1750279842411,-311.47251944,0.00021917,6]
[366477460,1750279842420,-460.0,0.00021917,6]
[366477461,1750279842429,-410.0,0.00021917,6]
[366477462,1750279842438,-460.0,0.00021917,6]
[366477463,1750279842448,-410.0,0.00021917,6]
[366477464,1750279842457,-460.0,0.00021917,6]
[366477465,1750279842466,-207.37699835,0.00021917,6]
[366477466,1750279842475,-2810.28,0.00021917,6]
[366477467,1750279842484,-460.0,0.00021917,6]
[366477468,1750279842494,-460.0,0.00021917,6]
[366477469,1750279842503,-460.0,0.00021917,6]
[366477470,1750279842513,-460.0,0.00021917,6]
[366477471,1750279842527,-460.0,0.00021917,6]
[366477472,1750279842539,-460.0,0.00021917,6]
[366477473,1750279842548,-460.0,0.00021917,6]
[366477474,1750279842558,-523.02434713,0.00021917,6]
[366477475,1750279842567,-460.0,0.00021917,6]
[366477476,1750279842576,-694.25,0.00021917,6]
[366477477,1750279842586,-541.37644841,0.00021917,6]
[366477478,1750279842596,-432.3694075,0.00021917,6]
[366477479,1750279842606,-500.0,0.00021917,6]
[366477480,1750279842615,-460.0,0.00021917,6]
[366477481,1750279842624,-500.0,0.00021917,6]
[366477482,1750279842633,-460.0,0.00021917,6]
[366477483,1750279842642,-500.0,0.00021917,6]
[366477484,1750279842651,-500.0,0.00021917,6]
[366477485,1750279842660,-246.30434827,0.00021917,6]
[366477486,1750279842669,-460.0,0.00021917,6]
[366477487,1750279842679,-460.0,0.00021917,6]
[366477488,1750279842688,-310.11571773,0.00021917,6]